fUSD/lending_fUSD_20240216
["ID","MTS","AMOUNT","RATE_DAILY","PERIOD"]
[314251203,1708119102398,-500.0,0.0005041,60]
[314251204,1708119102407,-1492.92,0.0005041,60]
[314251205,1708119102416,-500.0,0.0005041,60]
[314251206,1708119102426,-2046.77,0.0005041,60]
[314251207,1708119102435,-500.0,0.0005041,60]
[314251208,1708119102445,-500.0,0.0005041,60]
[314251209,1708119102456,-500.0,0.0005041,60]
[314251210,1708119102465,-500.0,0.0005041,60]
[314251211,1708119102474,-802.5,0.0005041,60]
[314251212,1708119102483,-500.0,0.0005041,60]
[314251213,1708119102492,-610.16,0.0005041,60]
[314251214,1708119102502,-500.0,0.0005041,60]
[314251215,1708119102511,-500.0,0.0005041,60]
[314251216,1708119102521,-1066.34,0.0005041,60]
[314251217,1708119102532,-500.0,0.0005041,60]
[314251218,1708119102543,-797.01,0.0005041,60]
[314251219,1708119102554,-500.0,0.0005041,60]
[314251220,1708119102566,-3199.37,0.0005041,60]
[314251221,1708119102576,-500.0,0.0005041,60]
[314251222,1708119102585,-729.2,0.0005041,60]
[314251223,1708119102594,-500.0,0.0005041,60]
[314251224,1708119102603,-24352.15,0.0005041,60]
[314251225,1708119102613,-1397.78,0.0005041,60]
[314251226,1708119102621,-500.0,0.0005041,60]
[314251227,1708119102630,-498.44072687,0.0005041,60]
[314251228,1708119102639,-500.0,0.0005041,60]
[314251229,1708119102649,-512.62985811,0.0005041,60]
[314251230,1708119102658,-500.0,0.0005041,60]
[314251231,1708119102670,-2225.09,0.0005041,60]
[314251232,1708119102681,-500.0,0.0005041,60]
[314251233,1708119102691,-500.0,0.0005041,60]
[314251234,1708119102701,-3059.93,0.0005041,60]
[314251235,1708119102711,-500.0,0.0005041,60]
[314251236,1708119102721,-663.32,0.0005041,60]
[314251237,1708119102730,-583.53635439,0.0005041,60]
[314251238,1708119102740,-559.03,0.0005041,60]
[314251239,1708119102749,-500.0,0.0005041,60]
[314251240,1708119102760,-500.0,0.0005041,60]
[314251241,1708119102769,-500.0,0.0005041,60]
[314251242,1708119102779,-500.0,0.0005041,60]
[314251243,1708119102789,-500.0,0.0005041,60]
[314251244,1708119102798,-500.0,0.0005041,60]
[314251245,1708119102808,-3189.76,0.0005041,60]
[314251246,1708119102817,-2572.92,0.0005041,60]
[314251247,1708119102827,-1075.21,0.0005041,60]
[314251248,1708119102836,-500.0,0.0005041,60]
[314251249,1708119102846,-500.0,0.0005041,60]
[314251250,1708119102856,-500.0,0.0005041,60]
[314251251,1708119102865,-500.0,0.0005041,60]
[314251252,1708119102874,-4525.95,0.0005041,60]
[314251253,1708119102884,-648.82,0.0005041,60]
[314251254,1708119102894,-5354.43,0.0005041,60]
[314251255,1708119102903,-703.45,0.0005041,60]
[314251256,1708119102913,-1211.83,0.0005041,60]
[314251257,1708119102926,-500.0,0.0005041,60]
[314251258,1708119102936,-871.55,0.0005041,60]
[314251259,1708119102946,-609.42,0.0005041,60]
[314251260,1708119102956,-1231.04,0.0005041,60]
[314251261,1708119102966,-737.52,0.0005041,60]
[314251262,1708119102976,-591.52,0.0005041,60]
[314251263,1708119102986,-719.76,0.0005041,60]
[314251264,1708119102996,-2765.99,0.0005041,60]
[314251265,1708119103006,-500.0,0.0005041,60]
[314251266,1708119103016,-500.0,0.0005041,60]
[314251267,1708119103025,-1575.91,0.0005041,60]
[314251268,1708119103035,-500.0,0.0005041,60]
[314251269,1708119103044,-868.38,0.0005041,60]
[314251270,1708119103054,-9546.8,0.0005041,60]
[314251271,1708119103064,-606.97,0.0005041,60]
[314251272,1708119103074,-500.0,0.0005041,60]
[314251273,1708119103083,-2411.87,0.0005041,60]
[314251274,1708119103093,-500.0,0.0005041,60]
[314251275,1708119103103,-500.0,0.0005041,60]
[314251276,1708119103113,-500.0,0.0005041,60]
[314251277,1708119103122,-500.0,0.0005041,60]
[314251278,1708119103132,-570.56,0.0005041,60]
[314251279,1708119103142,-500.0,0.0005041,60]
[314251280,1708119103151,-1028.79,0.0005041,60]
[314251281,1708119103161,-222.08710636,0.0005041,60]
[314251282,1708119103170,-1081.67,0.0005041,60]
[314251283,1708119103180,-500.0,0.0005041,60]
[314251284,1708119103190,-500.0,0.0005041,60]
[314251285,1708119103201,-8340.13,0.0005041,60]
[314251286,1708119103210,-500.0,0.0005041,60]
[314251287,1708119103220,-500.0,0.0005041,60]
[314251288,1708119103230,-6395.6,0.0005041,14]
[314251289,1708119103239,-500.0,0.0005041,60]
[314251290,1708119103249,-500.0,0.0005041,60]
[314251291,1708119103258,-500.0,0.0005041,60]
[314251292,1708119103267,-500.0,0.0005041,60]
[314251293,1708119103277,-500.0,0.0005041,60]
[314251294,1708119103287,-500.0,0.0005041,7]
[314251295,1708119103296,-2287.27,0.0005041,60]
[314251296,1708119103306,-500.0,0.0005041,60]
[314251297,1708119103315,-542.74,0.0005041,60]
[314251298,1708119103325,-500.0,0.0005041,60]
[314251299,1708119103334,-1517.81,0.0005041,60]
[314251300,1708119103344,-520.3,0.0005041,60]
[314251301,1708119103354,-500.0,0.0005041,60]
[314251302,1708119103363,-7477.21,0.0005041,60]
[314251303,1708119103373,-500.0,0.0005041,60]
[314251304,1708119103383,-714.64,0.0005041,60]
[314251305,1708119103392,-500.0,0.0005041,60]
[314251306,1708119103401,-630.12,0.0005041,60]
[314251307,1708119103410,-500.0,0.0005041,60]
[314251308,1708119103420,-500.0,0.0005041,60]
[314251309,1708119103430,-636.47114974,0.0005041,60]
[314251310,1708119103439,-722.94,0.0005041,60]
[314251311,1708119103448,-910.24,0.0005041,60]
[314251312,1708119103457,-3306.89,0.0005041,60]
[314251313,1708119103467,-500.0,0.0005041,60]
[314251314,1708119103477,-544.82,0.0005041,60]
[314251315,1708119103486,-5810.7,0.0005041,60]
[314251316,1708119103495,-2333.25,0.0005041,60]
[314251317,1708119103504,-500.0,0.0005041,60]
[314251318,1708119103513,-1821.43,0.0005041,60]
[314251319,1708119103523,-500.0,0.0005041,60]
[314251320,1708119103533,-1107.39,0.0005041,60]
[314251321,1708119103542,-500.0,0.0005041,60]
[314251322,1708119103552,-3684.25,0.0005041,60]
[314251323,1708119103562,-583.02,0.0005041,60]
[314251324,1708119103573,-500.0,0.0005041,60]
[314251325,1708119103582,-500.0,0.0005041,60]
[314251326,1708119103592,-673.09,0.0005041,60]
[314251327,1708119103601,-500.0,0.0005041,60]
[314251328,1708119103611,-530.67,0.0005041,60]
[314251329,1708119103620,-500.0,0.0005041,60]
[314251330,1708119103630,-500.0,0.0005041,60]
[314251331,1708119103639,-500.0,0.0005041,60]
[314251332,1708119103648,-500.0,0.0005041,60]
[314251333,1708119103659,-500.0,0.0005041,60]
[314251334,1708119103669,-868.96,0.0005041,60]
[314251335,1708119103679,-511.25256229,0.0005041,60]
[314251336,1708119103688,-688.48,0.0005041,60]
[314251337,1708119103698,-500.0,0.0005041,60]
[314251338,1708119103709,-2624.63,0.0005041,60]
[314251339,1708119103719,-500.0,0.0005041,60]
[314251340,1708119103728,-500.0,0.0005041,60]
[314251341,1708119103738,-842.25,0.0005041,60]
[314251342,1708119103748,-500.0,0.0005041,60]
[314251343,1708119103759,-905.88,0.0005041,60]
[314251344,1708119103768,-500.0,0.0005041,60]
[314251345,1708119103778,-500.0,0.0005041,60]
[314251346,1708119103788,-1344.54,0.0005041,60]
[314251347,1708119103797,-500.0,0.0005041,60]
[314251348,1708119103806,-842.36,0.0005041,2]
[314251349,1708119103816,-2942.14,0.0005041,60]
[314251350,1708119103826,-505.82,0.0005041,60]
[314251351,1708119103835,-500.0,0.0005041,60]
[314251352,1708119103845,-2570.64,0.0005041,60]
[314251353,1708119103855,-2688.02,0.0005041,60]
[314251354,1708119103865,-2260.09,0.0005041,60]
[314251355,1708119103874,-500.0,0.0005041,60]
[314251356,1708119103883,-500.0,0.0005041,60]
[314251357,1708119103892,-716.26,0.0005041,60]
[314251358,1708119103902,-547.41989744,0.0005041,60]
[314251359,1708119103916,-924.33,0.0005041,60]
[314251360,1708119103925,-500.0,0.0005041,60]
[314251361,1708119103934,-657.39,0.0005041,60]
[314251362,1708119103943,-500.0,0.0005041,60]
[314251363,1708119103954,-2023.51,0.0005041,60]
[314251364,1708119103964,-1625.46,0.0005041,60]
[314251365,1708119103973,-506.3,0.0005041,60]
[314251366,1708119103982,-500.0,0.0005041,60]
[314251367,1708119103991,-953.19,0.0005041,60]
[314251368,1708119104002,-680.83,0.0005041,60]
[314251369,1708119104011,-500.0,0.0005041,60]
[314251370,1708119104021,-1719.81,0.0005041,60]
[314251371,1708119104031,-586.01,0.0005041,60]
[314251372,1708119104041,-562.1,0.0005041,60]
[314251373,1708119104050,-582.82,0.0005041,60]
[314251374,1708119104060,-659.84,0.0005041,60]
[314251375,1708119104069,-4202.04,0.0005041,60]
[314251376,1708119104078,-7068.33,0.0005041,60]
[314251377,1708119104088,-500.0,0.0005041,60]
[314251378,1708119104097,-500.0,0.0005041,60]
[314251379,1708119104106,-500.0,0.0005041,60]
[314251380,1708119104115,-2643.96,0.0005041,60]
[314251381,1708119104125,-500.0,0.0005041,60]
[314251382,1708119104134,-500.0,0.0005041,60]
[314251383,1708119104143,-600.0,0.0005041,60]
[314251384,1708119104153,-1183.13,0.0005041,60]
[314251385,1708119104162,-500.0,0.0005041,60]
[314251386,1708119104172,-1949.14,0.0005041,60]
[314251387,1708119104182,-500.0,0.0005041,60]
[314251388,1708119104191,-1927.89,0.0005041,60]
[314251389,1708119104202,-566.21,0.0005041,60]
[314251390,1708119104211,-500.0,0.0005041,60]
[314251391,1708119104221,-699.96,0.0005041,60]
[314251392,1708119104231,-500.0,0.0005041,60]
[314251393,1708119104240,-500.0,0.0005041,60]
[314251394,1708119104249,-3348.01,0.0005041,60]
[314251395,1708119104259,-1200.81,0.0005041,60]
[314251396,1708119104268,-500.0,0.0005041,60]
[314251397,1708119104277,-1872.95,0.0005041,60]
[314251398,1708119104286,-529.58,0.0005041,60]
[314251399,1708119104296,-716.71,0.0005041,60]
[314251400,1708119104305,-693.17,0.0005041,60]
[314251401,1708119104315,-500.0,0.0005041,60]
[314251402,1708119104324,-1099.89,0.0005041,60]
[314251403,1708119104334,-500.0,0.0005041,60]
[314251404,1708119104505,-500.0,0.0005041,60]
[314251405,1708119104514,-552.07,0.0005041,60]
[314251406,1708119104524,-500.0,0.0005041,60]
[314251407,1708119104532,-1791.39,0.0005041,60]
[314251408,1708119104541,-500.0,0.0005041,60]
[314251409,1708119104552,-573.51,0.0005041,60]
[314251410,1708119104563,-777.88,0.0005041,60]
[314251411,1708119104573,-500.0,0.0005041,60]
[314251412,1708119104582,-500.0,0.0005041,60]
[314251413,1708119104591,-1055.53,0.0005041,60]
[314251414,1708119104601,-722.67,0.0005041,60]
[314251415,1708119104610,-1887.23,0.0005041,60]
[314251416,1708119104619,-500.0,0.0005041,60]
[314251417,1708119104629,-500.0,0.0005041,60]
[314251418,1708119104638,-674.89,0.0005041,60]
[314251419,1708119104647,-2198.11,0.0005041,60]
[314251420,1708119104657,-8115.72,0.0005041,60]
[314251421,1708119104667,-500.0,0.0005041,60]
[314251422,1708119104676,-701.75,0.0005041,60]
[314251423,1708119104685,-500.0,0.0005041,60]
[314251424,1708119104695,-779.02,0.0005041,60]
[314251425,1708119104706,-500.0,0.0005041,60]
[314251426,1708119104715,-1002.39,0.0005041,60]
[314251427,1708119104725,-500.0,0.0005041,60]
[314251428,1708119104734,-377.41131641,0.0005041,60]
[314251429,1708119104743,-1115.22,0.0005041,60]
[314251430,1708119104753,-1272.04,0.0005041,60]
[314251431,1708119104763,-500.0,0.0005041,60]
[314251432,1708119104776,-505.42,0.0005041,60]
[314251433,1708119104785,-3301.31,0.0005041,60]
[314251434,1708119104795,-626.52,0.0005041,60]
[314251435,1708119104805,-500.0,0.0005041,60]
[314251436,1708119104815,-500.0,0.0005041,60]
[314251437,1708119104825,-500.0,0.0005041,60]
[314251438,1708119104834,-500.0,0.0005041,60]
[314251439,1708119104844,-500.0,0.0005041,60]
[314251440,1708119104854,-500.0,0.0005041,60]
[314251441,1708119104864,-1972.92,0.0005041,60]
[314251442,1708119104874,-500.0,0.0005041,60]
[314251443,1708119104884,-991.91,0.0005041,60]
[314251444,1708119104893,-914.46,0.0005041,60]
[314251445,1708119104903,-500.0,0.0005041,60]
[314251446,1708119104913,-536.93,0.0005041,60]
[314251447,1708119104926,-500.0,0.0005041,60]
[314251448,1708119104936,-500.0,0.0005041,60]
[314251449,1708119104946,-500.0,0.0005041,60]
[314251450,1708119104957,-500.0,0.0005041,60]
[314251451,1708119104969,-500.0,0.0005041,60]
[314251452,1708119104979,-500.0,0.0005041,60]
[314251453,1708119104988,-6496.83,0.0005041,60]
[314251454,1708119104999,-500.0,0.0005041,2]
[314251455,1708119105009,-500.0,0.0005041,60]
[314251456,1708119105019,-152.0,0.00050451,6]
[314251457,1708119105028,-1000.0,0.00050486,4]
[314251458,1708119105038,-151.021737,0.00050498,39]
[314251459,1708119105048,-200.0,0.000505,28]
[314251460,1708119105057,-200.0,0.000505,28]
[314251461,1708119105067,-150.0,0.000505,21]
[314251462,1708119105077,-177.0556127,0.00050518,60]
[314251463,1708119105086,-177.0556127,0.00050543,60]
[314251464,1708119105096,-310.44,0.0005056,2]
[314251465,1708119105105,-3595.8391231,0.00050579,2]
[314251466,1708119105115,-7113.65847793,0.00050584,12]
[314251467,1708119105125,-18822.8769249,0.00050614,2]
[314251468,1708119105135,-3691.4234871,0.00050614,2]
[314251469,1708119105144,-254.52395784,0.00050639,10]
[314251470,1708119105154,-172.94189201,0.00050639,10]
[314251471,1708119105163,-7916.435845,0.00050649,2]
[314251472,1708119105173,-137071.4045485,0.00050649,2]
[314251473,1708119105182,-50195.290426,0.00050684,30]
[314251474,1708119105192,-12338.757953,0.00050684,120]
[314251475,1708119105202,-1799.768554,0.00050684,30]
[314251476,1708119105211,-805.831537,0.00050684,30]
[314251477,1708119105222,-14402.47374,0.00050684,120]
[314251478,1708119105231,-5187.785896,0.00050684,30]
[314251479,1708119105242,-91267.456284,0.00050684,30]
[314251480,1708119105251,-8945.599516,0.00050684,120]
[314251481,1708119105260,-2934.096365,0.00050684,30]
[314251482,1708119105270,-14507.918998,0.00050684,30]
[314251483,1708119105280,-2158.511498,0.00050684,30]
[314251484,1708119105290,-4862.162784,0.00050684,30]
[314251485,1708119105299,-1458.648833,0.00050684,30]
[314251486,1708119105309,-5469.933132,0.00050684,30]
[314251487,1708119105318,-154.037526,0.00050684,120]
[314251488,1708119105328,-9661.890944,0.00050684,30]
[314251489,1708119105337,-2548.590684,0.00050684,120]
[314251490,1708119105347,-565.452892,0.00050684,30]
[314251491,1708119105357,-2276.062929,0.00050684,30]
[314251492,1708119105366,-4514.08498,0.00050684,30]
[314251493,1708119105375,-1990.91127,0.00050684,30]
[314251494,1708119105386,-2085.75954,0.00050684,30]
[314251495,1708119105395,-904.290082,0.00050684,30]
[314251496,1708119105404,-6611.371474,0.00050684,30]
[314251497,1708119105414,-1784.01348,0.00050684,120]
[314251498,1708119105424,-3380.382696,0.00050684,30]
[314251499,1708119105434,-550.087478,0.00050684,120]
[314251500,1708119105443,-1804.760318,0.00050684,30]
[314251501,1708119105452,-2381.990177,0.00050684,30]
[314251502,1708119105462,-2230.016849,0.00050684,120]
[314251503,1708119105471,-27152.73394,0.00050684,30]
[314251504,1708119105481,-4235.035506,0.00050684,30]
[314251505,1708119105491,-3122.023589,0.00050684,120]
[314251506,1708119105501,-20076.706571,0.00050684,30]
[314251507,1708119105510,-3617.160335,0.00050684,30]
[314251508,1708119105519,-1374.934594,0.00050684,120]
[314251509,1708119105529,-1382.54938,0.00050684,30]
[314251510,1708119105538,-2230.016852,0.00050684,120]
[314251511,1708119105548,-9634.628198,0.00050684,30]
[314251512,1708119105558,-2140.816174,0.00050684,120]
[314251513,1708119105567,-557.504217,0.00050684,120]
[314251514,1708119105578,-2508.768956,0.00050684,120]
[314251515,1708119105587,-4181.281593,0.00050684,120]
[314251516,1708119105597,-5187.785896,0.00050684,30]
[314251517,1708119105606,-2934.096365,0.00050684,30]
[314251518,1708119105616,-3676.869231,0.00050684,120]
[314251519,1708119105637,-6743.19905,0.00050684,30]
[314251520,1708119105657,-500.0,0.00050684,60]
[314251521,1708119105675,-500.0,0.00050684,60]
[314251522,1708119105695,-500.0,0.00050684,60]
[314251523,1708119105712,-500.0,0.00050684,60]
[314251524,1708119105730,-500.0,0.00050684,60]
[314251525,1708119105749,-500.0,0.00050684,60]
[314251526,1708119105765,-500.0,0.00050684,60]
[314251527,1708119105784,-500.0,0.00050684,60]
[314251528,1708119105801,-500.0,0.00050684,60]
[314251529,1708119105819,-500.0,0.00050684,60]
[314251530,1708119105840,-500.0,0.00050684,60]
[314251531,1708119105853,-500.0,0.00050684,60]
[314251532,1708119105868,-500.0,0.00050684,60]
[314251533,1708119105884,-500.0,0.00050684,60]
[314251534,1708119105897,-500.0,0.00050684,60]
[314251535,1708119105918,-500.0,0.00050684,60]
[314251536,1708119105934,-500.0,0.00050684,60]
[314251537,1708119105951,-500.0,0.00050684,60]
[314251538,1708119105968,-500.0,0.00050684,60]
[314251539,1708119105983,-500.0,0.00050684,60]
[314251540,1708119105999,-500.0,0.00050684,60]
[314251541,1708119106014,-500.0,0.00050684,60]
[314251542,1708119106030,-500.0,0.00050684,60]
[314251543,1708119106046,-500.0,0.00050684,60]
[314251544,1708119106061,-500.0,0.00050684,60]
[314251545,1708119106076,-500.0,0.00050684,60]
[314251546,1708119106091,-500.0,0.00050684,60]
[314251547,1708119106105,-522.63812371,0.00050684,60]
[314251548,1708119106120,-500.0,0.00050684,60]
[314251549,1708119106134,-500.0,0.00050684,60]
[314251550,1708119106149,-500.0,0.00050684,60]
[314251551,1708119106163,-500.0,0.00050684,60]
[314251552,1708119106178,-500.0,0.00050684,60]
[314251553,1708119106192,-500.0,0.00050684,60]
[314251554,1708119106207,-500.0,0.00050684,60]
[314251555,1708119106221,-500.0,0.00050684,60]
[314251556,1708119106236,-500.0,0.00050684,60]
[314251557,1708119106250,-500.0,0.00050684,60]
[314251558,1708119106264,-500.0,0.00050684,60]
[314251559,1708119106279,-500.0,0.00050684,60]
[314251560,1708119106293,-500.0,0.00050684,60]
[314251561,1708119106307,-500.0,0.00050684,60]
[314251562,1708119106322,-500.0,0.00050684,60]
[314251563,1708119106336,-500.0,0.00050684,60]
[314251564,1708119106351,-500.0,0.00050684,60]
[314251565,1708119106365,-500.0,0.00050684,60]
[314251566,1708119106380,-500.0,0.00050684,60]
[314251567,1708119106394,-500.0,0.00050684,60]
[314251568,1708119106408,-500.0,0.00050684,60]
[314251569,1708119106423,-500.0,0.00050684,60]
[314251570,1708119106436,-500.0,0.00050684,60]
[314251571,1708119106450,-664.54,0.00050684,30]
[314251572,1708119106465,-500.0,0.00050684,60]
[314251573,1708119106479,-500.0,0.00050684,60]
[314251574,1708119106493,-549.68578068,0.00050684,60]
[314251575,1708119106507,-500.0,0.00050684,60]
[314251576,1708119106521,-568.05,0.00050684,2]
[314251577,1708119106536,-500.0,0.00050684,60]
[314251578,1708119106550,-500.0,0.00050684,60]
[314251579,1708119106566,-500.0,0.00050684,60]
[314251580,1708119106580,-500.0,0.00050684,60]
[314251581,1708119106595,-163.81228398,0.00050684,60]
[314251582,1708119106609,-500.0,0.00050684,60]
[314251583,1708119106623,-500.0,0.00050684,60]
[314251584,1708119106637,-500.0,0.00050684,60]
[314251585,1708119106650,-500.0,0.00050684,60]
[314251586,1708119106664,-500.0,0.00050684,60]
[314251587,1708119106678,-500.0,0.00050684,60]
[314251588,1708119106693,-500.0,0.00050684,60]
[314251589,1708119106707,-500.0,0.00050684,60]
[314251590,1708119106721,-500.0,0.00050684,60]
[314251591,1708119106734,-500.0,0.00050684,60]
[314251592,1708119106748,-500.0,0.00050684,60]
[314251593,1708119106766,-500.0,0.00050684,60]
[314251594,1708119106780,-500.0,0.00050684,60]
[314251595,1708119106797,-500.0,0.00050684,60]
[314251596,1708119106818,-500.0,0.00050684,60]
[314251597,1708119106833,-500.0,0.00050684,60]
[314251598,1708119106847,-500.0,0.00050684,60]
[314251599,1708119106862,-500.0,0.00050684,60]
[314251600,1708119106877,-500.0,0.00050684,60]
[314251601,1708119106891,-500.0,0.00050684,60]
[314251602,1708119106905,-500.0,0.00050684,60]
[314251603,1708119106922,-500.0,0.00050684,60]
[314251604,1708119106941,-500.0,0.00050684,60]
[314251605,1708119106956,-500.0,0.00050684,60]
[314251606,1708119106971,-500.0,0.00050684,60]
[314251607,1708119106984,-500.0,0.00050684,60]
[314251608,1708119107000,-500.0,0.00050684,60]
[314251609,1708119107014,-500.0,0.00050684,60]
[314251610,1708119107029,-500.0,0.00050684,60]
[314251611,1708119107042,-500.0,0.00050684,60]
[314251612,1708119107056,-500.0,0.00050684,60]
[314251613,1708119107070,-429.6,0.00050684,60]
[314251614,1708119107084,-500.0,0.00050684,60]
[314251615,1708119107099,-631.37,0.00050684,60]
[314251616,1708119107113,-500.0,0.00050684,60]
[314251617,1708119107127,-500.0,0.00050684,60]
[314251618,1708119107142,-500.0,0.00050684,60]
[314251619,1708119107156,-500.0,0.00050684,60]
[314251620,1708119107171,-500.0,0.00050684,60]
[314251621,1708119107185,-500.0,0.00050684,60]
[314251622,1708119107200,-500.0,0.00050684,60]
[314251623,1708119107215,-500.0,0.00050684,60]
[314251624,1708119107230,-500.0,0.00050684,60]
[314251625,1708119107244,-500.0,0.00050684,60]
[314251626,1708119107257,-500.0,0.00050684,60]
[314251627,1708119107272,-500.0,0.00050684,60]
[314251628,1708119107286,-500.0,0.00050684,60]
[314251629,1708119107300,-500.0,0.00050684,60]
[314251630,1708119107314,-500.0,0.00050684,60]
[314251631,1708119107328,-500.0,0.00050684,60]
[314251632,1708119107342,-500.0,0.00050684,60]
[314251633,1708119107356,-500.0,0.00050684,60]
[314251634,1708119107370,-500.0,0.00050684,60]
[314251635,1708119107600,-500.0,0.00050684,60]
[314251636,1708119107613,-500.0,0.00050684,60]
[314251637,1708119107623,-500.0,0.00050684,60]
[314251638,1708119107633,-549.14,0.00050684,60]
[314251639,1708119107642,-500.0,0.00050684,60]
[314251640,1708119107651,-500.0,0.00050684,60]
[314251641,1708119107661,-500.0,0.00050684,60]
[314251642,1708119107670,-500.0,0.00050684,60]
[314251643,1708119107680,-500.0,0.00050684,60]
[314251644,1708119107689,-500.0,0.00050684,60]
[314251645,1708119107699,-500.0,0.00050684,60]
[314251646,1708119107708,-500.0,0.00050684,60]
[314251647,1708119107718,-500.0,0.00050684,60]
[314251648,1708119107727,-500.0,0.00050684,60]
[314251649,1708119107737,-500.0,0.00050684,60]
[314251650,1708119107747,-500.0,0.00050684,60]
[314251651,1708119107755,-500.0,0.00050684,60]
[314251652,1708119107765,-953.91,0.00050684,60]
[314251653,1708119107774,-500.0,0.00050684,60]
[314251654,1708119107783,-713.03,0.00050684,60]
[314251655,1708119107792,-500.0,0.00050684,60]
[314251656,1708119107802,-639.89,0.00050684,60]
[314251657,1708119107812,-500.0,0.00050684,60]
[314251658,1708119107821,-500.0,0.00050684,60]
[314251659,1708119107831,-510.16,0.00050684,60]
[314251660,1708119107840,-274.8547982,0.00050684,60]
[314251661,1708119107850,-500.0,0.00050684,2]
[314251662,1708119107859,-500.0,0.00050684,60]
[314251663,1708119107869,-500.0,0.00050684,60]
[314251664,1708119107878,-580.88,0.00050684,60]
[314251665,1708119107887,-500.0,0.00050684,60]
[314251666,1708119107897,-500.0,0.00050684,60]
[314251667,1708119107907,-500.0,0.00050684,60]
[314251668,1708119107918,-500.0,0.00050684,60]
[314251669,1708119107928,-555.94,0.00050684,60]
[314251670,1708119107937,-500.0,0.00050684,60]
[314251671,1708119107947,-572.13,0.00050684,60]
[314251672,1708119107957,-570.46,0.00050684,60]
[314251673,1708119107967,-500.0,0.00050684,60]
[314251674,1708119107976,-551.75,0.00050684,60]
[314251675,1708119107986,-500.0,0.00050684,60]
[314251676,1708119107996,-500.0,0.00050684,60]
[314251677,1708119108006,-500.0,0.00050684,60]
[314251678,1708119108015,-500.0,0.00050684,60]
[314251679,1708119108024,-500.0,0.00050684,60]
[314251680,1708119108034,-500.0,0.00050684,60]
[314251681,1708119108043,-616.49,0.00050684,60]
[314251682,1708119108052,-500.0,0.00050684,60]
[314251683,1708119108062,-500.0,0.00050684,60]
[314251684,1708119108071,-500.0,0.00050684,60]
[314251685,1708119108080,-500.0,0.00050684,60]
[314251686,1708119108090,-500.0,0.00050684,60]
[314251687,1708119108101,-569.39,0.00050684,60]
[314251688,1708119108110,-500.0,0.00050684,60]
[314251689,1708119108119,-500.0,0.00050684,60]
[314251690,1708119108128,-500.0,0.00050684,60]
[314251691,1708119108137,-614.71,0.00050684,60]
[314251692,1708119108146,-500.0,0.00050684,60]
[314251693,1708119108155,-500.0,0.00050684,60]
[314251694,1708119108164,-551.81816462,0.00050684,60]
[314251695,1708119108173,-500.0,0.00050684,60]
[314251696,1708119108183,-869.27,0.00050684,60]
[314251697,1708119108192,-500.0,0.00050684,60]
[314251698,1708119108201,-2236.49,0.00050684,60]
[314251699,1708119108211,-500.0,0.00050684,60]
[314251700,1708119108220,-679.72,0.00050684,60]
[314251701,1708119108229,-500.0,0.00050684,60]
[314251702,1708119108239,-514.97,0.00050684,60]